bitfinex/quotes_BTCUSD_20240828
["timestamp","ask_amount","ask_price","bid_price","bid_amount"]
[1724875429125,0.169111,59133.0,59129.0,0.0008998]
[1724875429332,0.08882024,59136.0,59129.0,0.0008998]
[1724875429555,0.169105,59135.0,59131.0,0.169115]
[1724875429760,0.02652024,59136.0,59134.0,0.169105]
[1724875429920,0.02652024,59136.0,59135.0,0.169104]
[1724875430518,0.02652024,59136.0,59135.0,0.923922]
[1724875430714,0.02652024,59136.0,59135.0,0.585713]
[1724875430922,0.02652024,59136.0,59135.0,0.923922]
[1724875431438,0.02652024,59136.0,59135.0,0.585713]
[1724875431909,0.02652024,59136.0,59135.0,0.987322]
[1724875432286,0.02652024,59136.0,59135.0,1.325531]
[1724875432837,0.00823,59148.0,59146.0,0.169073]
[1724875433300,0.00823,59148.0,59146.0,0.507219]
[1724875434355,0.03474659,59147.0,59146.0,0.507219]
[1724875434581,0.03474659,59147.0,59146.0,0.845365]
[1724875434784,0.03474659,59147.0,59146.0,0.507219]
[1724875436376,0.338146,59146.0,59135.0,0.0634]
[1724875436577,0.30212805,59144.0,59134.0,0.4768]
[1724875436866,0.169077,59145.0,59137.0,0.338196]
[1724875437088,0.169074,59146.0,59142.0,0.169084]
[1724875437327,0.03474659,59147.0,59144.0,0.169077]
[1724875437785,0.03474659,59147.0,59142.0,0.338167]
[1724875437786,0.169074,59146.0,59142.0,0.169081]
[1724875438039,0.169076,59145.0,59141.0,0.169086]
[1724875438242,0.169073,59146.0,59142.0,0.169083]
[1724875438473,0.169073,59146.0,59140.0,0.338179]
[1724875438474,0.169073,59146.0,59143.0,0.16908]
[1724875438949,0.20381659,59147.0,59143.0,0.16908]
[1724875439199,0.03474659,59147.0,59141.0,0.338174]
[1724875439463,0.03474659,59147.0,59138.0,0.0791]
[1724875439705,0.03474659,59147.0,59146.0,0.169073]
[1724875439944,0.03474659,59147.0,59146.0,0.507219]
[1724875440170,0.03474659,59147.0,59146.0,0.845365]
[1724875440389,0.03474659,59147.0,59146.0,0.507219]
[1724875440878,0.03474659,59147.0,59146.0,0.169073]
[1724875441134,0.03474659,59147.0,59146.0,0.507219]
[1724875441606,0.03474659,59147.0,59146.0,0.845365]
[1724875442078,0.03474659,59147.0,59146.0,0.927265]
[1724875442849,0.03474659,59147.0,59146.0,0.338146]
[1724875443089,0.03474659,59147.0,59146.0,0.845365]
[1724875444804,0.03474659,59147.0,59146.0,1.261811]
[1724875447681,0.00823,59147.0,59146.0,1.261811]
[1724875449079,0.00823,59147.0,59146.0,1.662857]
[1724875449340,0.00823,59147.0,59146.0,3.373303]
[1724875449584,0.00823,59147.0,59146.0,3.035157]
[1724875449795,0.00823,59147.0,59146.0,3.037157]
[1724875450637,0.00823,59147.0,59146.0,2.692011]
[1724875450841,0.00823,59147.0,59146.0,2.669011]
[1724875451627,0.00823,59147.0,59146.0,3.030157]
[1724875452153,0.00823,59147.0,59146.0,3.035157]
[1724875453949,0.00823,59147.0,59146.0,3.045157]
[1724875454158,0.00823,59147.0,59146.0,3.047157]
[1724875454602,0.0004,59159.0,59158.0,1.326569]
[1724875455088,0.0004,59159.0,59155.0,1.2443]
[1724875455696,0.0004,59159.0,59156.0,0.169042]
[1724875456196,0.0004,59159.0,59155.0,1.582393]
[1724875456197,0.338474,59159.0,59155.0,1.2443]
[1724875456404,0.0004,59159.0,59155.0,1.582394]
[1724875456621,0.0004,59159.0,59155.0,1.2443]
[1724875456829,0.0004,59159.0,59156.0,0.169043]
[1724875457314,0.0004,59159.0,59158.0,0.169038]
[1724875457568,0.0004,59159.0,59158.0,0.925592]
[1724875458201,0.02690967,59159.0,59158.0,0.925592]
[1724875459241,0.02690967,59159.0,59158.0,0.989792]
[1724875459475,0.02690967,59159.0,59158.0,1.327869]
[1724875459733,0.02690967,59159.0,59158.0,0.989792]
[1724875459956,0.02690967,59159.0,59158.0,1.327869]
[1724875460602,0.02690967,59159.0,59158.0,1.450869]
[1724875463713,0.02690967,59159.0,59158.0,1.788946]
[1724875464217,0.02690967,59159.0,59158.0,1.798946]
[1724875464477,0.00822,59162.0,59158.0,1.798946]
[1724875464478,0.00822,59162.0,59160.0,0.015]
[1724875464662,0.00822,59162.0,59160.0,1.36861034]
[1724875464880,0.00818,59170.0,59169.0,1.16106305]
[1724875465099,0.00818,59170.0,59169.0,1.92599105]
[1724875465321,0.00818,59170.0,59169.0,2.02599105]
[1724875465747,0.00818,59170.0,59169.0,2.36400505]
[1724875465968,0.00818,59170.0,59169.0,3.62330505]
[1724875466204,0.00818,59170.0,59169.0,2.37900505]
[1724875466410,0.00858,59179.0,59178.0,1.76376105]
[1724875466620,0.00858,59179.0,59178.0,2.20282405]
[1724875466836,0.00858,59179.0,59178.0,1.96486105]
[1724875467040,0.00858,59179.0,59178.0,2.03076105]
[1724875468914,0.00858,59179.0,59178.0,2.03276105]
[1724875469355,0.02649783,59193.0,59183.0,1.590703]
[1724875469564,0.0004,59199.0,59183.0,1.795603]
[1724875469776,0.0004,59199.0,59183.0,1.84213229]
[1724875470030,0.02661516,59184.0,59183.0,1.790603]
[1724875470283,0.0004,59199.0,59185.0,0.005]
[1724875470511,0.0004,59199.0,59185.0,2.21140405]
[1724875470718,0.00318,59186.0,59185.0,2.31140405]
[1724875470929,0.02967357,59186.0,59185.0,2.31140405]
[1724875471133,0.0004,59199.0,59194.0,0.414772]
[1724875471413,0.0004,59199.0,59194.0,1.24250805]
[1724875471620,0.0004,59199.0,59194.0,2.08244801]
[1724875471819,0.0004,59199.0,59194.0,2.42032001]
[1724875472462,0.0004,59199.0,59196.0,1.95103]
[1724875472716,0.0004,59199.0,59196.0,2.14063]
[1724875472909,0.0004,59199.0,59196.0,2.19138539]
[1724875473336,0.00818,59202.0,59196.0,2.19138539]
[1724875473337,0.00818,59202.0,59201.0,1.662344]
[1724875473539,0.00818,59202.0,59201.0,2.03827205]
[1724875473741,0.00818,59202.0,59201.0,2.09046288]
[1724875473965,0.00818,59202.0,59201.0,2.42829488]
[1724875474173,0.082,59224.0,59218.0,1.182072]
[1724875474463,0.0646,59235.0,59218.0,1.182072]
[1724875474679,0.083,59229.0,59218.0,1.182072]
[1724875474880,0.1417,59235.0,59218.0,1.542807]
[1724875475967,0.00858,59239.0,59229.0,1.181852]
[1724875476174,0.00858,59239.0,59229.0,1.264852]
[1724875476398,0.00858,59239.0,59229.0,1.630524]
[1724875476626,0.00858,59239.0,59229.0,2.133496]
[1724875476846,0.00858,59239.0,59229.0,2.19697559]
[1724875477061,0.0004,59259.0,59250.0,0.23792805]
[1724875477280,0.0004,59259.0,59256.0,0.506277]
[1724875477511,0.0004,59259.0,59256.0,0.843795]
[1724875478183,0.03463774,59257.0,59256.0,0.843795]
[1724875478397,0.02606774,59257.0,59256.0,1.618031]
[1724875478608,0.02606774,59257.0,59256.0,0.843795]
[1724875478816,0.02606774,59257.0,59256.0,1.181313]
[1724875479066,0.02606774,59257.0,59256.0,0.843795]
[1724875479279,0.0812,59256.0,59250.0,0.1]
[1724875479491,0.0812,59256.0,59239.0,0.1384]
[1724875479718,0.168766,59254.0,59248.0,0.16878]
[1724875479974,0.168767,59253.0,59246.0,0.337575]
[1724875480247,0.0812,59256.0,59248.0,0.337559]
[1724875480443,0.168764,59255.0,59249.0,0.168778]
[1724875480659,0.08876774,59257.0,59229.0,0.0805]
[1724875480660,0.168789,59246.0,59229.0,0.0805]
[1724875480865,0.0808,59245.0,59241.0,0.168799]
[1724875481082,0.0808,59245.0,59244.0,0.168793]
[1724875481285,0.0808,59245.0,59240.0,0.337605]
[1724875481286,0.0808,59245.0,59240.0,0.506409]
[1724875481543,0.0808,59245.0,59234.0,0.168819]
[1724875481765,0.0808,59245.0,59231.0,0.50540786]
[1724875481766,0.249591,59245.0,59231.0,0.50540786]
[1724875481970,0.0808,59245.0,59232.0,0.00337602]
[1724875482175,0.0808,59245.0,59240.0,0.168803]
[1724875482609,0.249591,59245.0,59240.0,0.168803]
[1724875482819,0.168794,59244.0,59238.0,0.168809]
[1724875483106,0.168802,59241.0,59233.0,0.337648]
[1724875483351,0.168813,59238.0,59232.0,0.168826]
[1724875483589,0.1402,59240.0,59228.0,0.4768]
[1724875483590,0.1402,59240.0,59235.0,0.168818]
[1724875483770,0.309005,59240.0,59235.0,0.168818]
[1724875484010,0.168814,59237.0,59232.0,0.168824]
[1724875484458,0.309005,59240.0,59235.0,0.168817]
[1724875484667,0.1402,59240.0,59233.0,0.337647]
[1724875484887,0.1402,59240.0,59238.0,0.168808]
[1724875485108,0.1468,59251.0,59236.0,0.33763]
[1724875485315,0.1468,59251.0,59250.0,0.168776]
[1724875485526,0.1468,59251.0,59250.0,0.506328]
[1724875485953,0.0004,59259.0,59255.0,0.168762]
[1724875485954,0.063,59256.0,59255.0,0.168762]
[1724875486165,0.0795,59257.0,59245.0,0.0798]
[1724875486166,0.0004,59259.0,59258.0,0.168753]
[1724875486376,0.0004,59259.0,59258.0,0.843767]
[1724875486842,0.0004,59259.0,59258.0,1.181274]
[1724875487312,0.0004,59259.0,59258.0,2.842881]
[1724875487545,0.1425,59274.0,59263.0,0.843695]
[1724875487809,0.0004,59279.0,59263.0,1.543651]
[1724875488056,0.0004,59279.0,59263.0,1.602751]
[1724875488538,0.0004,59279.0,59263.0,2.41598652]
[1724875488765,0.0004,59279.0,59278.0,0.843482]
[1724875488984,0.0004,59279.0,59278.0,1.180875]
[1724875489218,0.0004,59279.0,59278.0,1.598068]
[1724875489513,0.0004,59279.0,59278.0,1.621068]
[1724875489756,0.0004,59299.0,59278.0,1.621068]
[1724875489757,0.168638,59299.0,59278.0,0.440193]
[1724875489993,0.337256,59303.0,59295.0,0.168647]
[1724875490238,0.005,59312.0,59279.0,0.023]
[1724875490506,0.337259,59302.0,59293.0,0.168651]
[1724875490773,0.337259,59302.0,59283.0,0.50540786]
[1724875490774,0.168642,59298.0,59283.0,0.50540786]
[1724875491001,0.005,59311.0,59284.0,0.50540786]
[1724875491249,0.34168602,59316.0,59278.0,0.168695]
[1724875491250,0.33734,59288.0,59278.0,0.168695]
[1724875491444,0.168666,59289.0,59281.0,0.50540786]
[1724875491679,0.29595752,59300.0,59271.0,0.0764]
[1724875491680,0.168672,59287.0,59271.0,0.0764]
[1724875491931,0.29595752,59300.0,59271.0,0.0764]
[1724875492172,0.16868,59284.0,59279.0,0.168692]
[1724875492419,0.16868,59284.0,59271.0,0.0764]
[1724875492420,0.63326652,59293.0,59265.0,0.1]
[1724875492662,0.337355,59285.0,59266.0,0.023]
[1724875492877,0.168689,59281.0,59275.0,0.168705]
[1724875493113,0.337342,59287.0,59279.0,0.16869]
[1724875493329,0.337342,59287.0,59265.0,0.105]
[1724875493330,0.168689,59281.0,59265.0,0.1]
[1724875493539,0.337363,59284.0,59265.0,0.337464]
[1724875493756,0.337348,59286.0,59264.0,0.1]
[1724875493757,0.0642,59279.0,59264.0,0.1]
[1724875493956,0.0642,59279.0,59275.0,0.168703]
[1724875494202,0.0642,59279.0,59273.0,0.168709]
[1724875494400,0.0642,59279.0,59269.0,0.337443]
[1724875494635,0.0642,59279.0,59259.0,0.0008976]
[1724875494847,0.337424,59273.0,59260.0,0.50540786]
[1724875495057,0.168716,59271.0,59266.0,0.168729]
[1724875495264,0.168713,59273.0,59265.0,0.337465]
[1724875495477,0.0642,59279.0,59261.0,0.337485]
[1724875495691,0.0777,59278.0,59259.0,0.0008976]
[1724875495909,0.0777,59278.0,59262.0,0.168739]
[1724875496121,0.168729,59267.0,59260.0,0.337491]
[1724875496346,0.337408,59276.0,59260.0,0.337491]
[1724875496347,0.0777,59266.0,59260.0,0.337493]
[1724875496553,0.29595752,59278.0,59259.0,0.0008976]
[1724875496554,0.415093,59278.0,59265.0,0.168732]
[1724875496763,0.0777,59278.0,59259.0,0.0008976]
[1724875497001,0.168736,59265.0,59259.0,0.1696466]
[1724875497238,0.337447,59269.0,59259.0,0.1696466]
[1724875497239,0.0777,59278.0,59264.0,0.168735]
[1724875497443,0.168722,59269.0,59264.0,0.168735]
[1724875497870,0.168728,59267.0,59263.0,0.168738]
[1724875498101,0.168703,59276.0,59260.0,0.00337464]
[1724875498308,0.0777,59278.0,59271.0,0.168715]
[1724875498309,0.168705,59275.0,59271.0,0.168715]
[1724875498959,0.0777,59278.0,59262.0,0.0775]
[1724875499163,0.168718,59271.0,59255.0,0.0775]
[1724875499393,0.168719,59270.0,59266.0,0.16873]
[1724875499597,0.168719,59270.0,59264.0,0.33747]
[1724875499598,0.168714,59272.0,59267.0,0.168727]
[1724875499799,0.168714,59272.0,59264.0,0.33747]
[1724875499800,0.168715,59272.0,59264.0,0.33747]
[1724875500007,0.168716,59271.0,59265.0,0.337467]
[1724875500213,0.337417,59274.0,59268.0,0.168725]
[1724875500422,0.0777,59278.0,59260.0,0.168746]
[1724875500621,0.0827,59277.0,59259.0,0.0008976]
[1724875500826,0.168728,59267.0,59259.0,0.0008976]
[1724875501041,0.0771,59275.0,59259.0,0.0008976]
[1724875501042,0.168747,59260.0,59259.0,0.0008976]
[1724875501259,0.649842,59260.0,59259.0,0.0008976]
[1724875501781,0.235231,59266.0,59259.0,0.0008976]
[1724875502002,0.337481,59263.0,59259.0,0.0008976]
[1724875502263,0.0665,59266.0,59259.0,0.0008976]
[1724875502264,0.0665,59266.0,59260.0,0.168747]
[1724875502468,0.0665,59266.0,59259.0,0.0008976]
[1724875502469,0.337495,59260.0,59259.0,0.0008976]
[1724875502682,0.843737,59260.0,59259.0,0.0008976]
[1724875502848,0.0665,59266.0,59259.0,0.0008976]
[1724875503049,0.337467,59265.0,59259.0,0.0008976]
[1724875503336,0.0665,59266.0,59259.0,0.0008976]
[1724875503498,0.337473,59264.0,59259.0,0.0008976]
[1724875503704,0.0665,59266.0,59260.0,0.337494]
[1724875503921,0.0665,59266.0,59259.0,0.0008976]
[1724875504129,0.168747,59260.0,59259.0,0.0008976]
[1724875504418,0.506242,59260.0,59259.0,0.0008976]
[1724875504638,0.168747,59260.0,59259.0,0.0008976]
[1724875505118,0.506242,59260.0,59259.0,0.0008976]
[1724875505574,0.168736,59264.0,59259.0,0.0008976]
[1724875505791,0.000816,59265.0,59259.0,0.0008976]
[1724875506013,0.000816,59265.0,59260.0,0.168746]
[1724875506218,0.168737,59264.0,59260.0,0.168746]
[1724875506445,0.000816,59265.0,59261.0,0.168745]
[1724875506446,0.16955,59265.0,59261.0,0.168745]
[1724875506641,0.000816,59265.0,59260.0,0.33749]
[1724875506838,0.169551,59265.0,59261.0,0.168743]
[1724875507055,0.169551,59265.0,59259.0,0.1696456]
[1724875507056,0.338283,59265.0,59259.0,0.1696456]
[1724875507259,0.338283,59265.0,59259.0,0.0008976]
[1724875507260,0.337476,59264.0,59259.0,0.0008976]
[1724875507464,0.000816,59265.0,59259.0,0.1696466]
[1724875507667,0.168747,59261.0,59259.0,0.0008976]
[1724875508366,0.000816,59265.0,59264.0,0.506209]
[1724875508577,0.000816,59265.0,59264.0,0.168736]
[1724875509195,0.000816,59265.0,59264.0,0.843682]
[1724875509320,0.000816,59265.0,59264.0,0.921282]
[1724875509547,0.000816,59265.0,59264.0,1.258755]
[1724875510178,0.337328,59290.0,59264.0,1.258755]
[1724875510179,0.0635,59291.0,59266.0,0.002]
[1724875510374,0.0635,59291.0,59286.0,0.168671]
[1724875510650,0.23216,59291.0,59286.0,0.168671]
[1724875510875,0.1457,59298.0,59286.0,0.337343]
[1724875511092,0.1457,59298.0,59283.0,0.403264]
[1724875511093,0.16865,59295.0,59283.0,0.403264]
[1724875511295,0.1457,59298.0,59283.0,0.0659]
[1724875511503,0.01766514,59294.0,59289.0,0.337328]
[1724875511731,0.01766514,59294.0,59283.0,0.0659]
[1724875511937,0.004,59291.0,59280.0,0.0793]
[1724875512156,0.004,59291.0,59275.0,0.0793]
[1724875512353,0.01766514,59294.0,59270.0,0.50540786]
[1724875512354,0.337369,59283.0,59270.0,0.50540786]
[1724875512600,0.337333,59289.0,59271.0,0.34080202]
[1724875512799,0.337333,59289.0,59270.0,0.50540786]
[1724875512800,0.168731,59266.0,59262.0,0.58470786]
[1724875513018,0.16874,59263.0,59260.0,0.0501]
[1724875513232,0.068,59282.0,59260.0,0.0501]
[1724875513233,0.337473,59264.0,59260.0,0.0501]
[1724875513456,0.16874,59263.0,59260.0,0.0501]
[1724875513666,0.063,59265.0,59260.0,0.0501]
[1724875514121,0.063,59265.0,59261.0,0.168744]
[1724875514329,0.063,59265.0,59260.0,0.218846]
[1724875514552,0.063,59265.0,59260.0,0.0501]
[1724875514971,0.063,59265.0,59262.0,0.014]
[1724875515412,0.063,59265.0,59261.0,0.012]
[1724875515413,0.16874,59263.0,59261.0,0.012]
[1724875515607,0.168742,59262.0,59261.0,0.012]
[1724875515856,0.506226,59262.0,59261.0,0.012]
[1724875516078,0.506235,59261.0,59260.0,0.0501]
[1724875516292,0.843725,59261.0,59260.0,0.0501]
[1724875516713,0.843725,59261.0,59260.0,0.0509965]
[1724875517166,0.506235,59261.0,59260.0,0.0509965]
[1724875517583,0.001,59262.0,59260.0,0.0509965]
[1724875517804,0.001,59262.0,59261.0,0.168745]
[1724875518224,0.063,59265.0,59261.0,0.168745]
[1724875518470,0.001,59262.0,59261.0,0.178745]
[1724875518695,0.001,59262.0,59261.0,0.009]
[1724875518911,0.231733,59265.0,59260.0,0.2337435]
[1724875518912,0.168745,59261.0,59260.0,0.0509965]
[1724875519121,0.583135,59261.0,59260.0,0.0509965]
[1724875519332,1.762805,59261.0,59260.0,0.0509965]
[1724875519538,0.988265,59244.0,59243.0,0.50540786]
[1724875519740,1.325851,59244.0,59243.0,0.50540786]
[1724875519957,0.0641,59244.0,59226.0,0.50540786]
[1724875520180,0.650824,59227.0,59226.0,0.50540786]
[1724875520405,0.1443,59242.0,59229.0,0.168835]
[1724875520623,0.168816,59236.0,59231.0,0.168829]
[1724875520831,0.168816,59236.0,59223.0,0.0768]
[1724875520832,0.1443,59242.0,59230.0,0.168832]
[1724875521059,0.1443,59242.0,59225.0,0.0665]
[1724875521271,0.16873,59242.0,59222.0,0.168855]
[1724875521477,0.168837,59229.0,59224.0,0.168848]
[1724875522111,0.337663,59231.0,59225.0,0.168847]
[1724875522112,0.506495,59231.0,59225.0,0.168847]
[1724875522351,0.168833,59230.0,59225.0,0.168847]
[1724875522525,0.168833,59230.0,59226.0,0.168844]
[1724875522759,0.337654,59233.0,59218.0,0.1433]
[1724875523033,0.169838,59229.0,59224.0,0.175849]
[1724875523236,0.170838,59229.0,59224.0,0.186849]
[1724875523660,0.168842,59227.0,59224.0,0.018]
[1724875523882,0.168846,59226.0,59224.0,0.018]
[1724875524095,0.506542,59225.0,59224.0,0.018]
[1724875524439,0.506542,59225.0,59224.0,0.011]
[1724875524649,0.168847,59225.0,59224.0,0.011]
[1724875524847,0.168852,59224.0,59219.0,0.16218327]
[1724875525077,0.168845,59226.0,59214.0,0.337754]
[1724875525292,0.168855,59223.0,59217.0,0.168869]
[1724875525515,0.001,59225.0,59213.0,0.0768]
[1724875525757,0.168866,59219.0,59214.0,0.168877]
[1724875525987,0.168866,59219.0,59205.0,1.7211]
[1724875525988,0.168884,59213.0,59204.0,0.337812]
[1724875526201,0.168884,59213.0,59201.0,0.346794]
[1724875526202,0.0803,59206.0,59201.0,0.008965]
[1724875526405,0.168913,59202.0,59201.0,0.008965]
[1724875526621,0.506739,59202.0,59201.0,0.008965]
[1724875526837,0.52442773,59202.0,59201.0,0.008965]
[1724875527293,0.86225373,59202.0,59201.0,0.008965]
[1724875527515,0.52442773,59202.0,59201.0,0.008965]
[1724875527717,0.86225373,59202.0,59201.0,0.008965]
[1724875528879,0.86225373,59202.0,59201.0,0.011965]
[1724875529092,0.86225373,59202.0,59201.0,0.012965]
[1724875530075,0.52442773,59202.0,59201.0,0.012965]
[1724875530933,0.52442773,59202.0,59201.0,0.011965]
[1724875531317,0.52642773,59202.0,59201.0,0.011965]
[1724875531518,0.52642773,59202.0,59201.0,0.008965]
[1724875531722,0.86225373,59202.0,59201.0,0.008965]
[1724875531933,0.86425373,59202.0,59201.0,0.008965]
[1724875532171,0.52642773,59202.0,59201.0,0.008965]
[1724875532490,0.52742773,59202.0,59201.0,0.010965]
[1724875532700,0.52442773,59202.0,59201.0,0.008965]
[1724875532895,0.86225373,59202.0,59201.0,0.008965]
[1724875533136,0.86225373,59202.0,59201.0,0.010965]
[1724875533137,1.28117973,59202.0,59201.0,0.010965]
[1724875533361,1.28117973,59202.0,59201.0,0.008965]
[1724875533362,1.81480573,59202.0,59201.0,0.008965]
[1724875533530,1.98335737,59202.0,59201.0,0.010965]
[1724875533763,1.98372717,59202.0,59201.0,0.010965]
[1724875533959,1.79017553,59202.0,59201.0,0.010965]
[1724875534174,1.79217553,59202.0,59201.0,0.010965]
[1724875534588,1.78580573,59202.0,59201.0,0.010965]
[1724875534932,1.78380573,59202.0,59201.0,0.008965]
[1724875535135,1.95235737,59202.0,59201.0,0.008965]
[1724875535519,1.95435737,59202.0,59201.0,0.008965]
[1724875535727,1.44797973,59202.0,59201.0,0.008965]
[1724875535922,1.44597973,59202.0,59201.0,0.008965]
[1724875536141,1.74482563,59202.0,59201.0,0.008965]
[1724875537360,1.75413928,59202.0,59201.0,0.008965]
[1724875537569,2.11496528,59202.0,59201.0,0.008965]
[1724875537780,2.28551692,59202.0,59201.0,0.008965]
[1724875538194,2.62334292,59202.0,59201.0,0.008965]
[1724875538431,2.62134292,59202.0,59201.0,0.008965]
[1724875538656,2.28351692,59202.0,59201.0,0.008965]
[1724875538847,2.29451692,59202.0,59201.0,0.008965]
[1724875539315,2.29351692,59202.0,59201.0,0.008965]
[1724875539554,2.64434292,59202.0,59201.0,0.008965]
[1724875540206,2.64434292,59202.0,59195.0,0.0008987]
[1724875540207,0.34486,59196.0,59195.0,0.0008987]
[1724875540459,0.605124,59192.0,59191.0,0.0004]
[1724875540650,0.605124,59192.0,59171.0,0.58760786]
[1724875540651,1.1418379,59172.0,59171.0,0.50580786]
[1724875541068,0.8038409,59172.0,59171.0,0.01593542]
[1724875541345,0.168998,59172.0,59171.0,0.09323542]
[1724875541550,0.1,59185.0,59171.0,0.0777]
[1724875541551,0.337943,59182.0,59171.0,0.0777]
[1724875541751,0.1,59185.0,59171.0,0.0777]
[1724875541752,0.506995,59172.0,59171.0,0.09334005]
[1724875541969,0.506995,59172.0,59171.0,0.01604005]
[1724875541970,0.844992,59172.0,59171.0,0.01604005]
[1724875542189,0.844992,59172.0,59171.0,0.0004]
[1724875543342,1.182989,59172.0,59171.0,0.0004]
[1724875543804,1.716786,59172.0,59171.0,0.0004]
[1724875544037,2.054783,59172.0,59171.0,0.0004]
[1724875544263,1.714786,59172.0,59171.0,0.0004]
[1724875544957,1.716786,59172.0,59171.0,0.0004]
[1724875545201,1.798386,59172.0,59171.0,0.0004]
[1724875545439,1.96693764,59172.0,59171.0,0.0004]
[1724875545671,2.26378354,59172.0,59171.0,0.0004]
[1724875545913,1.607739,59166.0,59165.0,0.008965]
[1724875546180,0.84525,59154.0,59153.0,0.50540786]
[1724875546440,0.84525,59154.0,59151.0,0.0004]
[1724875546441,0.507166,59152.0,59151.0,0.0004]
[1724875546702,0.845277,59152.0,59151.0,0.0004]
[1724875547211,1.183388,59152.0,59151.0,0.0004]
[1724875547421,1.33141139,59152.0,59151.0,0.0004]
[1724875547660,1.48411139,59152.0,59151.0,0.0004]
[1724875547900,1.50711139,59152.0,59151.0,0.0004]
[1724875548135,1.331088,59152.0,59151.0,0.0004]
[1724875548364,1.183388,59152.0,59151.0,0.0004]
[1724875549071,0.005,59159.0,59151.0,0.0004]
[1724875549072,0.1,59160.0,59151.0,0.0608]
[1724875549303,0.338079,59158.0,59151.0,0.0608]
[1724875549518,0.338079,59158.0,59152.0,0.169053]
[1724875549739,0.338079,59158.0,59151.0,0.0608]
[1724875549980,0.169047,59155.0,59151.0,0.0608]
[1724875550204,0.16905,59154.0,59151.0,0.0608]
[1724875550647,0.2968459,59170.0,59155.0,0.0758]
[1724875550860,0.2968459,59170.0,59151.0,0.0608]
[1724875550861,0.169012,59168.0,59163.0,0.169023]
[1724875551087,0.169012,59168.0,59160.0,0.0758]
[1724875551088,0.169012,59168.0,59162.0,0.169026]
[1724875551300,0.338009,59170.0,59160.0,0.0758]
[1724875551507,0.338025,59168.0,59160.0,0.0758]
[1724875551747,0.02564209,59176.0,59160.0,0.0758]
[1724875551928,0.2968459,59177.0,59164.0,0.169019]
[1724875552139,0.2968459,59177.0,59156.0,0.398485]
[1724875552140,0.169008,59169.0,59165.0,0.244816]
[1724875552569,0.168993,59174.0,59170.0,0.169003]
[1724875552837,0.01769822,59181.0,59167.0,0.0798]
[1724875553033,0.01769822,59181.0,59166.0,0.06377997]
[1724875553034,0.168985,59177.0,59171.0,0.168999]
[1724875553244,0.168988,59176.0,59172.0,0.0798]
[1724875553455,0.01769822,59181.0,59172.0,0.0798]
[1724875553662,0.01769822,59181.0,59173.0,0.0618]
[1724875553855,0.168982,59178.0,59174.0,0.0829]
[1724875554057,0.168984,59177.0,59174.0,0.0829]
[1724875554281,0.01769822,59181.0,59174.0,0.0829]
[1724875554494,0.168977,59180.0,59174.0,0.251891]
[1724875554716,0.168985,59177.0,59174.0,0.0829]
[1724875554959,0.168982,59178.0,59174.0,0.0829]
[1724875555398,0.168985,59177.0,59174.0,0.0829]
[1724875555603,0.337959,59179.0,59174.0,0.0829]
[1724875555604,0.337962,59179.0,59174.0,0.0829]
[1724875555820,0.50697,59175.0,59174.0,0.0829]
[1724875556723,0.50697,59175.0,59174.0,0.09586683]
[1724875556934,0.16899,59175.0,59174.0,0.09586683]
[1724875557385,0.86264868,59175.0,59174.0,0.09586683]
[1724875557626,0.52466868,59175.0,59174.0,0.09586683]
[1724875557855,0.52466868,59175.0,59174.0,0.0829]
[1724875557856,0.18668868,59175.0,59174.0,0.0829]
[1724875558076,0.18224497,59175.0,59174.0,0.0829]
[1724875558300,0.18224497,59175.0,59174.0,0.251893]
[1724875558301,0.01769868,59175.0,59174.0,0.251893]
[1724875558526,0.01769868,59175.0,59174.0,0.09586399]
[1724875559579,0.18668868,59175.0,59174.0,0.09586399]
[1724875559801,0.86264868,59175.0,59174.0,0.09586399]
[1724875560012,0.86264868,59175.0,59174.0,0.0829]
[1724875560494,0.86264868,59175.0,59161.0,0.814858]
[1724875560495,0.169027,59162.0,59161.0,0.4768]
[1724875560700,0.169027,59162.0,59158.0,0.169037]
[1724875560899,0.169027,59162.0,59161.0,0.15307186]
[1724875561108,0.507081,59162.0,59161.0,0.14]
[1724875561318,0.507081,59162.0,59161.0,0.15307186]
[1724875561529,0.169027,59162.0,59161.0,0.14]
[1724875561743,0.507081,59162.0,59161.0,0.15307186]
[1724875561957,0.845135,59162.0,59161.0,0.15307186]
[1724875562199,0.507081,59162.0,59161.0,0.14]
[1724875562416,0.338044,59164.0,59161.0,0.14]
[1724875562667,0.169027,59162.0,59161.0,0.15307186]
[1724875562892,0.507081,59162.0,59161.0,0.15307186]
[1724875563132,0.845135,59162.0,59161.0,0.15307186]
[1724875563348,0.845135,59162.0,59161.0,0.14]
[1724875563598,0.845135,59162.0,59161.0,0.07567186]
[1724875563599,1.183189,59162.0,59161.0,0.07567186]
[1724875563803,0.845135,59162.0,59161.0,0.01307186]
[1724875564012,0.169034,59160.0,59157.0,0.1394]
[1724875564220,0.169038,59158.0,59157.0,0.1394]
[1724875564474,0.845192,59158.0,59157.0,0.1394]
[1724875564696,0.845192,59158.0,59151.0,0.0012998]
[1724875564697,0.845192,59158.0,59152.0,0.0791]
[1724875564698,0.507159,59153.0,59152.0,0.0791]
[1724875565693,0.338077,59158.0,59152.0,0.0791]
[1724875565867,0.02269868,59175.0,59151.0,0.0614998]
[1724875565868,0.169036,59159.0,59155.0,0.169046]
[1724875566080,0.169036,59159.0,59156.0,0.0772]
[1724875566280,0.169036,59159.0,59156.0,0.246244]
[1724875566500,0.169036,59159.0,59156.0,0.0772]
[1724875566710,0.169041,59157.0,59156.0,0.0772]
[1724875566932,0.507111,59159.0,59156.0,0.0772]
[1724875567161,0.338062,59161.0,59156.0,0.0772]
[1724875567162,0.338068,59160.0,59156.0,0.0772]
[1724875567361,0.169036,59159.0,59156.0,0.0772]